[Event "Titled Tuesday Blitz May 18 2021"]
[White "Nesterov, Arseniy"]
[Black "Paichadze, Luka"]
[WhiteFideId "24198455"]
[BlackFideId "13602934"]
[WhiteElo "2441"]
[BlackElo "2537"]
[Result "1-0"]
[Round "10"]
[TimeControl "180+1"]
[Date "2021.05.18"]
[WhiteClock "0:00:07"]
[BlackClock "0:00:29"]

1. d4 {[%clk 0:03:00]}  Nf6 {[%clk 0:02:59]} 2. c4 {[%clk 0:03:01]}  e6 {[%clk 0:02:59]} 3. Nf3 {[%clk 0:03:01]}  Bb4+ {[%clk 0:02:59]} 4. Bd2 {[%clk 0:03:01]}  c5 {[%clk 0:02:58]} 5. Bxb4 {[%clk 0:02:59]}  cxb4 {[%clk 0:02:59]} 6. g3 {[%clk 0:02:59]}  O-O {[%clk 0:02:56]} 7. Bg2 {[%clk 0:02:59]}  d6 {[%clk 0:02:57]} 8. O-O {[%clk 0:02:59]}  Nc6 {[%clk 0:02:54]} 9. a3 {[%clk 0:02:59]}  Qb6 {[%clk 0:02:50]} 10. axb4 {[%clk 0:02:52]}  Nxb4 {[%clk 0:02:49]} 11. Nc3 {[%clk 0:02:50]}  Bd7 {[%clk 0:02:48]} 12. e4 {[%clk 0:02:47]}  Bc6 {[%clk 0:02:31]} 13. d5 {[%clk 0:02:44]}  Bd7 {[%clk 0:02:30]} 14. e5 {[%clk 0:02:43]}  dxe5 {[%clk 0:02:29]} 15. Nxe5 {[%clk 0:02:44]}  Rfd8 {[%clk 0:02:25]} 16. Qe2 {[%clk 0:02:06]}  exd5 {[%clk 0:02:20]} 17. cxd5 {[%clk 0:02:05]}  Be8 {[%clk 0:02:11]} 18. Rfd1 {[%clk 0:02:05]}  a5 {[%clk 0:02:07]} 19. g4 {[%clk 0:01:51]}  h6 {[%clk 0:02:06]} 20. h4 {[%clk 0:01:51]}  Nd7 {[%clk 0:01:51]} 21. Nc4 {[%clk 0:01:49]}  Qf6 {[%clk 0:01:50]} 22. Nxa5 {[%clk 0:01:35]}  Ra7 {[%clk 0:01:25]} 23. Ne4 {[%clk 0:01:15]}  Qxh4 {[%clk 0:01:22]} 24. Nd6 {[%clk 0:01:15]}  Nf6 {[%clk 0:01:19]} 25. Naxb7 {[%clk 0:01:14]}  Rxa1 {[%clk 0:01:18]} 26. Rxa1 {[%clk 0:01:15]}  Rb8 {[%clk 0:01:16]} 27. Qc4 {[%clk 0:00:28]}  Nxg4 {[%clk 0:01:11]} 28. Qf4 {[%clk 0:00:13]}  Nd3 {[%clk 0:01:08]} 29. Qg3 {[%clk 0:00:11]}  Qxg3 {[%clk 0:01:07]} 30. fxg3 {[%clk 0:00:12]}  Bd7 {[%clk 0:01:05]} 31. b3 {[%clk 0:00:07]}  Nb4 {[%clk 0:00:56]} 32. Ra7 {[%clk 0:00:07]}  Ne3 {[%clk 0:00:54]} 33. Nc5 {[%clk 0:00:06]}  Bg4 {[%clk 0:00:54]} 34. Nxf7 {[%clk 0:00:06]}  Nxg2 {[%clk 0:00:51]} 35. Kxg2 {[%clk 0:00:06]}  Nxd5 {[%clk 0:00:51]} 36. Ne5 {[%clk 0:00:07]}  Bd1 {[%clk 0:00:47]} 37. Ne6 {[%clk 0:00:06]}  Ne3+ {[%clk 0:00:36]} 38. Kg1 {[%clk 0:00:06]}  Nf5 {[%clk 0:00:36]} 39. g4 {[%clk 0:00:07]}  Bxg4 {[%clk 0:00:35]} 40. Nxg4 {[%clk 0:00:08]}  Rxb3 {[%clk 0:00:35]} 41. Ne5 {[%clk 0:00:06]}  Re3 {[%clk 0:00:33]} 42. Ra8+ {[%clk 0:00:06]}  Kh7 {[%clk 0:00:29]} 43. Nf8+ {[%clk 0:00:06]}  Kh8 {[%clk 0:00:29]} 44. Nfg6+ {[%clk 0:00:07]} 1-0


[Site "https://www.chess.com"]

[Event "Titled Tuesday Blitz May 18 2021"]
[White "Salem, A.R. Saleh"]
[Black "Seo, Jung Min"]
[WhiteFideId "9301348"]
[BlackFideId "1734687"]
[WhiteElo "2659"]
[BlackElo "2486"]
[Result "1-0"]
[Round "10"]
[TimeControl "180+1"]
[Date "2021.05.18"]
[WhiteClock "0:00:45"]
[BlackClock "0:01:41"]

1. d4 {[%clk 0:02:57]}  Nf6 {[%clk 0:03:00]} 2. c4 {[%clk 0:02:57]}  e6 {[%clk 0:03:00]} 3. Nf3 {[%clk 0:02:57]}  d5 {[%clk 0:03:00]} 4. Nc3 {[%clk 0:02:57]}  Be7 {[%clk 0:02:59]} 5. Bg5 {[%clk 0:02:58]}  O-O {[%clk 0:02:59]} 6. e3 {[%clk 0:02:58]}  Nbd7 {[%clk 0:02:59]} 7. Bd3 {[%clk 0:02:57]}  a6 {[%clk 0:02:58]} 8. cxd5 {[%clk 0:02:57]}  Nxd5 {[%clk 0:02:58]} 9. Nxd5 {[%clk 0:02:40]}  exd5 {[%clk 0:02:56]} 10. Bxe7 {[%clk 0:02:40]}  Qxe7 {[%clk 0:02:56]} 11. Qc2 {[%clk 0:02:41]}  Nf6 {[%clk 0:02:51]} 12. O-O {[%clk 0:02:39]}  h6 {[%clk 0:02:48]} 13. Ne5 {[%clk 0:02:34]}  c6 {[%clk 0:02:48]} 14. f4 {[%clk 0:02:34]}  Ne4 {[%clk 0:02:31]} 15. Bxe4 {[%clk 0:02:32]}  dxe4 {[%clk 0:02:31]} 16. f5 {[%clk 0:02:31]}  Re8 {[%clk 0:02:27]} 17. Rf4 {[%clk 0:02:23]}  f6 {[%clk 0:02:27]} 18. Qb3+ {[%clk 0:02:13]}  Kh7 {[%clk 0:02:26]} 19. Ng6 {[%clk 0:02:09]}  Qc7 {[%clk 0:02:14]} 20. g4 {[%clk 0:02:07]}  c5 {[%clk 0:02:13]} 21. d5 {[%clk 0:01:40]}  b5 {[%clk 0:02:09]} 22. Rd1 {[%clk 0:01:24]}  Qd6 {[%clk 0:02:06]} 23. Rf2 {[%clk 0:01:04]}  c4 {[%clk 0:01:58]} 24. Qc2 {[%clk 0:00:58]}  Bd7 {[%clk 0:01:53]} 25. Nf4 {[%clk 0:00:55]}  Qe5 {[%clk 0:01:49]} 26. d6 {[%clk 0:00:53]}  Bc6 {[%clk 0:01:45]} 27. b4 {[%clk 0:00:45]}  a5 {[%clk 0:01:41]} 28. Ng6 {[%clk 0:00:45]} 1-0


[Site "https://www.chess.com"]

[Event "Titled Tuesday Blitz May 18 2021"]
[White "Sanchez Alvares, Kelvin Antonio"]
[Black "Shipov, Sergei"]
[WhiteFideId "3906680"]
[BlackFideId "4113624"]
[WhiteElo "2247"]
[BlackElo "2776"]
[Result "0-1"]
[Round "10"]
[TimeControl "180+1"]
[Date "2021.05.18"]
[WhiteClock "0:00:40"]
[BlackClock "0:01:06"]

1. d4 {[%clk 0:03:00]}  Nf6 {[%clk 0:02:59]} 2. c4 {[%clk 0:03:00]}  c5 {[%clk 0:02:59]} 3. d5 {[%clk 0:02:54]}  b5 {[%clk 0:02:59]} 4. cxb5 {[%clk 0:02:54]}  a6 {[%clk 0:03:00]} 5. bxa6 {[%clk 0:02:54]}  g6 {[%clk 0:03:00]} 6. Nc3 {[%clk 0:02:54]}  Bg7 {[%clk 0:03:00]} 7. e4 {[%clk 0:02:54]}  d6 {[%clk 0:03:00]} 8. Bb5+ {[%clk 0:02:53]}  Nfd7 {[%clk 0:03:00]} 9. Nf3 {[%clk 0:02:50]}  Qa5 {[%clk 0:03:00]} 10. e5 {[%clk 0:02:47]}  O-O {[%clk 0:02:52]} 11. Bxd7 {[%clk 0:02:38]}  Nxd7 {[%clk 0:02:51]} 12. exd6 {[%clk 0:02:34]}  Bxa6 {[%clk 0:02:10]} 13. dxe7 {[%clk 0:02:30]}  Rfe8 {[%clk 0:02:10]} 14. d6 {[%clk 0:02:30]}  Bxc3+ {[%clk 0:02:09]} 15. bxc3 {[%clk 0:02:29]}  Qxc3+ {[%clk 0:02:10]} 16. Bd2 {[%clk 0:02:28]}  Qd3 {[%clk 0:02:10]} 17. Be3 {[%clk 0:02:21]}  Qc3+ {[%clk 0:02:09]} 18. Bd2 {[%clk 0:02:20]}  Qf6 {[%clk 0:01:13]} 19. Be3 {[%clk 0:02:08]}  Rab8 {[%clk 0:01:13]} 20. Rc1 {[%clk 0:01:26]}  Rb2 {[%clk 0:01:12]} 21. Rc2 {[%clk 0:01:16]}  Rxc2 {[%clk 0:01:11]} 22. Qxc2 {[%clk 0:01:14]}  Qxd6 {[%clk 0:01:12]} 23. Ng1 {[%clk 0:00:59]}  Ne5 {[%clk 0:01:09]} 24. Ne2 {[%clk 0:00:52]}  Nd3+ {[%clk 0:01:09]} 25. Kf1 {[%clk 0:00:52]}  Rxe7 {[%clk 0:01:09]} 26. Kg1 {[%clk 0:00:50]}  Nb4 {[%clk 0:01:06]} 27. Qb2 {[%clk 0:00:40]}  Qd1# {[%clk 0:01:06]} 0-1


[Site "https://www.chess.com"]

[Event "Titled Tuesday Blitz May 18 2021"]
[White "Sarana, Alexey"]
[Black "Alekseenko, Kirill"]
[WhiteFideId "24133795"]
[BlackFideId "4135539"]
[WhiteElo "2629"]
[BlackElo "2580"]
[Result "0-1"]
[Round "10"]
[TimeControl "180+1"]
[Date "2021.05.18"]
[WhiteClock "0:00:02"]
[BlackClock "0:00:12"]

1. d4 {[%clk 0:03:00]}  d5 {[%clk 0:03:00]} 2. c4 {[%clk 0:03:01]}  dxc4 {[%clk 0:03:01]} 3. e3 {[%clk 0:03:00]}  e5 {[%clk 0:03:01]} 4. Bxc4 {[%clk 0:02:58]}  Nc6 {[%clk 0:03:01]} 5. Nf3 {[%clk 0:02:51]}  e4 {[%clk 0:03:02]} 6. Nfd2 {[%clk 0:02:50]}  Qg5 {[%clk 0:03:02]} 7. Nxe4 {[%clk 0:02:50]}  Qxg2 {[%clk 0:03:02]} 8. Ng3 {[%clk 0:02:51]}  Nf6 {[%clk 0:03:03]} 9. Bf1 {[%clk 0:02:48]}  Qd5 {[%clk 0:03:03]} 10. Nc3 {[%clk 0:02:48]}  Qd8 {[%clk 0:03:03]} 11. Bc4 {[%clk 0:02:47]}  Be7 {[%clk 0:02:55]} 12. Rg1 {[%clk 0:02:43]}  O-O {[%clk 0:02:52]} 13. Bd2 {[%clk 0:02:43]}  Be6 {[%clk 0:02:47]} 14. Bxe6 {[%clk 0:02:42]}  fxe6 {[%clk 0:02:48]} 15. Qb3 {[%clk 0:02:42]}  Nd5 {[%clk 0:02:48]} 16. Nge4 {[%clk 0:02:06]}  Qd7 {[%clk 0:02:33]} 17. Nxd5 {[%clk 0:02:02]}  exd5 {[%clk 0:02:29]} 18. Nc3 {[%clk 0:02:03]}  Rad8 {[%clk 0:02:22]} 19. f4 {[%clk 0:01:42]}  Bh4+ {[%clk 0:02:17]} 20. Kd1 {[%clk 0:01:40]}  Kh8 {[%clk 0:02:12]} 21. Qb5 {[%clk 0:01:30]}  h6 {[%clk 0:01:50]} 22. a3 {[%clk 0:01:24]}  a6 {[%clk 0:01:46]} 23. Qd3 {[%clk 0:01:22]}  Ne7 {[%clk 0:01:43]} 24. Kc2 {[%clk 0:01:21]}  Nf5 {[%clk 0:01:40]} 25. Rad1 {[%clk 0:01:16]}  c6 {[%clk 0:01:33]} 26. Kb1 {[%clk 0:01:16]}  Nd6 {[%clk 0:01:33]} 27. Rg6 {[%clk 0:01:12]}  Qf5 {[%clk 0:01:32]} 28. Qxf5 {[%clk 0:01:11]}  Nxf5 {[%clk 0:01:33]} 29. Rf1 {[%clk 0:00:52]}  Rfe8 {[%clk 0:01:32]} 30. Rf3 {[%clk 0:00:46]}  Rd7 {[%clk 0:01:28]} 31. Rg1 {[%clk 0:00:45]}  Rde7 {[%clk 0:01:26]} 32. Nd1 {[%clk 0:00:45]}  b6 {[%clk 0:01:23]} 33. b4 {[%clk 0:00:44]}  Re6 {[%clk 0:01:20]} 34. Rh3 {[%clk 0:00:44]}  Bf6 {[%clk 0:01:11]} 35. Kc2 {[%clk 0:00:42]}  Nd6 {[%clk 0:01:07]} 36. Nb2 {[%clk 0:00:35]}  Ne4 {[%clk 0:00:53]} 37. Nd3 {[%clk 0:00:34]}  Rc8 {[%clk 0:00:50]} 38. f5 {[%clk 0:00:21]}  Ree8 {[%clk 0:00:48]} 39. Nf4 {[%clk 0:00:20]}  c5 {[%clk 0:00:41]} 40. dxc5 {[%clk 0:00:20]}  bxc5 {[%clk 0:00:41]} 41. bxc5 {[%clk 0:00:21]}  Rxc5+ {[%clk 0:00:41]} 42. Kd3 {[%clk 0:00:15]}  Nf2+ {[%clk 0:00:41]} 43. Ke2 {[%clk 0:00:16]}  Nxh3 {[%clk 0:00:42]} 44. Nxh3 {[%clk 0:00:17]}  d4 {[%clk 0:00:42]} 45. Nf4 {[%clk 0:00:15]}  dxe3 {[%clk 0:00:42]} 46. Bxe3 {[%clk 0:00:16]}  Rc3 {[%clk 0:00:32]} 47. Ne6 {[%clk 0:00:16]}  Rxa3 {[%clk 0:00:30]} 48. Rg6 {[%clk 0:00:16]}  Ra2+ {[%clk 0:00:30]} 49. Kf3 {[%clk 0:00:16]}  Rxh2 {[%clk 0:00:30]} 50. Bf4 {[%clk 0:00:17]}  Rh3+ {[%clk 0:00:24]} 51. Kg4 {[%clk 0:00:16]}  Rh4+ {[%clk 0:00:24]} 52. Kg3 {[%clk 0:00:16]}  Rh1 {[%clk 0:00:24]} 53. Kf3 {[%clk 0:00:11]}  a5 {[%clk 0:00:23]} 54. Bd6 {[%clk 0:00:11]}  Re1 {[%clk 0:00:17]} 55. Bf4 {[%clk 0:00:07]}  R1xe6 {[%clk 0:00:16]} 56. fxe6 {[%clk 0:00:07]}  Rxe6 {[%clk 0:00:16]} 57. Rg2 {[%clk 0:00:06]}  a4 {[%clk 0:00:16]} 58. Ra2 {[%clk 0:00:06]}  Ra6 {[%clk 0:00:17]} 59. Bc1 {[%clk 0:00:06]}  Kh7 {[%clk 0:00:16]} 60. Ba3 {[%clk 0:00:06]}  g5 {[%clk 0:00:15]} 61. Rc2 {[%clk 0:00:05]}  Kg6 {[%clk 0:00:16]} 62. Rc4 {[%clk 0:00:06]}  h5 {[%clk 0:00:16]} 63. Kg2 {[%clk 0:00:06]}  g4 {[%clk 0:00:16]} 64. Kg3 {[%clk 0:00:06]}  Be5+ {[%clk 0:00:16]} 65. Kh4 {[%clk 0:00:06]}  Rb6 {[%clk 0:00:11]} 66. Rxa4 {[%clk 0:00:04]}  Rb3 {[%clk 0:00:12]} 67. Ra6+ {[%clk 0:00:02]}  Bf6+ {[%clk 0:00:12]} 68. Rxf6+ {[%clk 0:00:02]}  Kxf6 {[%clk 0:00:13]} 69. Bd6 {[%clk 0:00:02]}  Rh3# {[%clk 0:00:12]} 0-1


[Site "https://www.chess.com"]

[Event "Titled Tuesday Blitz May 18 2021"]
[White "Shimanov, Aleksandr"]
[Black "Zubov, Alexander"]
[WhiteFideId "4198603"]
[BlackFideId "14109409"]
[WhiteElo "2596"]
[BlackElo "2740"]
[Result "1-0"]
[Round "10"]
[TimeControl "180+1"]
[Date "2021.05.18"]
[WhiteClock "0:00:13"]
[BlackClock "0:00:02"]

1. e4 {[%clk 0:03:00]}  c5 {[%clk 0:02:58]} 2. Nf3 {[%clk 0:02:59]}  e6 {[%clk 0:02:58]} 3. d3 {[%clk 0:02:57]}  Nc6 {[%clk 0:02:56]} 4. g3 {[%clk 0:02:56]}  d5 {[%clk 0:02:56]} 5. Nbd2 {[%clk 0:02:57]}  Nf6 {[%clk 0:02:56]} 6. Bg2 {[%clk 0:02:57]}  Be7 {[%clk 0:02:57]} 7. O-O {[%clk 0:02:58]}  O-O {[%clk 0:02:57]} 8. Re1 {[%clk 0:02:58]}  b5 {[%clk 0:02:57]} 9. e5 {[%clk 0:02:55]}  Ne8 {[%clk 0:02:57]} 10. Nf1 {[%clk 0:02:53]}  Nc7 {[%clk 0:02:55]} 11. h4 {[%clk 0:02:53]}  b4 {[%clk 0:02:55]} 12. Bf4 {[%clk 0:02:50]}  Nb5 {[%clk 0:02:55]} 13. h5 {[%clk 0:02:47]}  Ncd4 {[%clk 0:02:52]} 14. N1h2 {[%clk 0:02:42]}  a5 {[%clk 0:02:51]} 15. h6 {[%clk 0:02:39]}  g6 {[%clk 0:02:50]} 16. Qd2 {[%clk 0:02:37]}  a4 {[%clk 0:02:46]} 17. Nxd4 {[%clk 0:02:31]}  Nxd4 {[%clk 0:02:42]} 18. c3 {[%clk 0:02:28]}  bxc3 {[%clk 0:02:27]} 19. bxc3 {[%clk 0:02:28]}  Nf5 {[%clk 0:02:27]} 20. Ng4 {[%clk 0:02:26]}  Ba6 {[%clk 0:02:21]} 21. Rab1 {[%clk 0:02:24]}  Ra7 {[%clk 0:02:12]} 22. Qc2 {[%clk 0:02:03]}  a3 {[%clk 0:02:05]} 23. Bf1 {[%clk 0:01:58]}  Kh8 {[%clk 0:01:22]} 24. Qc1 {[%clk 0:01:54]}  Bb7 {[%clk 0:01:14]} 25. Bg2 {[%clk 0:01:38]}  Ba8 {[%clk 0:01:11]} 26. Rd1 {[%clk 0:01:32]}  g5 {[%clk 0:01:01]} 27. Bd2 {[%clk 0:01:31]}  Rg8 {[%clk 0:01:02]} 28. Rb5 {[%clk 0:01:04]}  d4 {[%clk 0:00:58]} 29. c4 {[%clk 0:00:53]}  Bxg2 {[%clk 0:00:57]} 30. Kxg2 {[%clk 0:00:54]}  Qa8+ {[%clk 0:00:57]} 31. f3 {[%clk 0:00:54]}  Rb7 {[%clk 0:00:26]} 32. Qc2 {[%clk 0:00:48]}  Rxb5 {[%clk 0:00:25]} 33. cxb5 {[%clk 0:00:49]}  Qd5 {[%clk 0:00:22]} 34. Qc4 {[%clk 0:00:48]}  Rb8 {[%clk 0:00:18]} 35. Rb1 {[%clk 0:00:46]}  Kg8 {[%clk 0:00:14]} 36. Rb3 {[%clk 0:00:45]}  Qxc4 {[%clk 0:00:13]} 37. dxc4 {[%clk 0:00:45]}  Ra8 {[%clk 0:00:13]} 38. Bc1 {[%clk 0:00:41]}  Rd8 {[%clk 0:00:13]} 39. Rxa3 {[%clk 0:00:38]}  d3 {[%clk 0:00:08]} 40. Bd2 {[%clk 0:00:38]}  Kf8 {[%clk 0:00:04]} 41. Rb3 {[%clk 0:00:34]}  Ra8 {[%clk 0:00:04]} 42. b6 {[%clk 0:00:30]}  Bd8 {[%clk 0:00:03]} 43. b7 {[%clk 0:00:30]}  Rb8 {[%clk 0:00:04]} 44. a4 {[%clk 0:00:30]}  Nd4 {[%clk 0:00:04]} 45. Rb1 {[%clk 0:00:27]}  Nc6 {[%clk 0:00:03]} 46. Rb5 {[%clk 0:00:25]}  Ke7 {[%clk 0:00:02]} 47. a5 {[%clk 0:00:24]}  Bxa5 {[%clk 0:00:01]} 48. Bxa5 {[%clk 0:00:23]}  Nxa5 {[%clk 0:00:01]} 49. Rxa5 {[%clk 0:00:23]}  Rxb7 {[%clk 0:00:02]} 50. Ra2 {[%clk 0:00:14]}  Rb4 {[%clk 0:00:02]} 51. Rd2 {[%clk 0:00:13]}  Rxc4 {[%clk 0:00:02]} 52. Rxd3 {[%clk 0:00:13]} 1-0


[Site "https://www.chess.com"]

[Event "Titled Tuesday Blitz May 18 2021"]
[White "Starozhilov, Leonid"]
[Black "Khusnutdinov, Rustam"]
[WhiteFideId "14106752"]
[BlackFideId "13701703"]
[WhiteElo "2411"]
[BlackElo "2571"]
[Result "0-1"]
[Round "10"]
[TimeControl "180+1"]
[Date "2021.05.18"]
[WhiteClock "0:00:01"]
[BlackClock "0:00:26"]

1. b3 {[%clk 0:03:00]}  e5 {[%clk 0:02:59]} 2. Bb2 {[%clk 0:03:01]}  Nc6 {[%clk 0:03:00]} 3. e3 {[%clk 0:03:01]}  Nf6 {[%clk 0:03:00]} 4. Bb5 {[%clk 0:03:01]}  Bd6 {[%clk 0:03:01]} 5. Ne2 {[%clk 0:03:02]}  O-O {[%clk 0:03:00]} 6. Bxc6 {[%clk 0:03:00]}  dxc6 {[%clk 0:03:00]} 7. Nbc3 {[%clk 0:03:01]}  e4 {[%clk 0:02:46]} 8. Ng3 {[%clk 0:03:00]}  Re8 {[%clk 0:02:45]} 9. f3 {[%clk 0:02:58]}  exf3 {[%clk 0:02:35]} 10. Qxf3 {[%clk 0:02:59]}  Be5 {[%clk 0:02:32]} 11. O-O {[%clk 0:02:44]}  Qxd2 {[%clk 0:02:03]} 12. Nce4 {[%clk 0:02:44]}  Qd8 {[%clk 0:02:03]} 13. Rad1 {[%clk 0:02:28]}  Qe7 {[%clk 0:02:03]} 14. Bxe5 {[%clk 0:02:19]}  Qxe5 {[%clk 0:02:04]} 15. Nxf6+ {[%clk 0:02:16]}  Qxf6 {[%clk 0:02:05]} 16. Qxf6 {[%clk 0:02:11]}  gxf6 {[%clk 0:02:05]} 17. Nh5 {[%clk 0:02:04]}  Rf8 {[%clk 0:02:01]} 18. Nxf6+ {[%clk 0:01:52]}  Kg7 {[%clk 0:02:02]} 19. e4 {[%clk 0:01:33]}  Be6 {[%clk 0:02:01]} 20. Rd3 {[%clk 0:01:31]}  Rh8 {[%clk 0:01:54]} 21. Rg3+ {[%clk 0:01:12]}  Kf8 {[%clk 0:01:54]} 22. Rd1 {[%clk 0:01:10]}  Ke7 {[%clk 0:01:53]} 23. Rf3 {[%clk 0:00:49]}  a5 {[%clk 0:01:53]} 24. a3 {[%clk 0:00:38]}  h6 {[%clk 0:01:34]} 25. Kf2 {[%clk 0:00:36]}  Rad8 {[%clk 0:01:34]} 26. Ke1 {[%clk 0:00:23]}  Rxd1+ {[%clk 0:01:30]} 27. Kxd1 {[%clk 0:00:24]}  Kd6 {[%clk 0:01:31]} 28. Kd2 {[%clk 0:00:10]}  Ke5 {[%clk 0:01:31]} 29. Ke3 {[%clk 0:00:10]}  Rd8 {[%clk 0:01:25]} 30. Rf1 {[%clk 0:00:10]}  c5 {[%clk 0:01:18]} 31. Nh5 {[%clk 0:00:09]}  Rd4 {[%clk 0:01:00]} 32. Ng3 {[%clk 0:00:06]}  a4 {[%clk 0:01:00]} 33. Rb1 {[%clk 0:00:03]}  b6 {[%clk 0:00:56]} 34. h3 {[%clk 0:00:02]}  axb3 {[%clk 0:00:35]} 35. cxb3 {[%clk 0:00:02]}  c4 {[%clk 0:00:36]} 36. bxc4 {[%clk 0:00:02]}  Bxc4 {[%clk 0:00:36]} 37. Rc1 {[%clk 0:00:02]}  Rd3+ {[%clk 0:00:35]} 38. Kf2 {[%clk 0:00:02]}  b5 {[%clk 0:00:31]} 39. Rc2 {[%clk 0:00:02]}  Rxa3 {[%clk 0:00:30]} 40. Nh5 {[%clk 0:00:01]}  Kxe4 {[%clk 0:00:26]} 41. Rb2 {[%clk 0:00:01]}  Ra2 {[%clk 0:00:26]} 0-1


[Site "https://www.chess.com"]

[Event "Titled Tuesday Blitz May 18 2021"]
[White "Triapishko, Alexandr"]
[Black "Krivonosov, Oleg"]
[WhiteFideId "14122286"]
[BlackFideId "11600349"]
[WhiteElo "2490"]
[BlackElo "2469"]
[Result "1-0"]
[Round "10"]
[TimeControl "180+1"]
[Date "2021.05.18"]
[WhiteClock "0:00:35"]
[BlackClock "0:00:31"]

1. c4 {[%clk 0:03:00]}  e6 {[%clk 0:02:58]} 2. Nf3 {[%clk 0:03:00]}  d5 {[%clk 0:02:58]} 3. d4 {[%clk 0:03:00]}  Nf6 {[%clk 0:02:58]} 4. g3 {[%clk 0:03:00]}  Be7 {[%clk 0:02:57]} 5. Bg2 {[%clk 0:03:01]}  O-O {[%clk 0:02:57]} 6. O-O {[%clk 0:03:00]}  Nbd7 {[%clk 0:02:57]} 7. Nc3 {[%clk 0:02:52]}  dxc4 {[%clk 0:02:56]} 8. e4 {[%clk 0:02:52]}  b5 {[%clk 0:02:55]} 9. Ne5 {[%clk 0:02:36]}  Bb7 {[%clk 0:02:33]} 10. Nxb5 {[%clk 0:02:23]}  Nxe4 {[%clk 0:02:14]} 11. Bf4 {[%clk 0:01:37]}  Nxe5 {[%clk 0:02:03]} 12. Bxe5 {[%clk 0:01:36]}  Nd6 {[%clk 0:01:30]} 13. Bxd6 {[%clk 0:01:18]}  cxd6 {[%clk 0:01:18]} 14. Bxb7 {[%clk 0:01:17]}  Rb8 {[%clk 0:01:19]} 15. Bc6 {[%clk 0:01:04]}  Qb6 {[%clk 0:01:11]} 16. d5 {[%clk 0:01:03]}  a6 {[%clk 0:01:00]} 17. Na3 {[%clk 0:00:57]}  Qc5 {[%clk 0:00:47]} 18. Rc1 {[%clk 0:00:55]}  Rxb2 {[%clk 0:00:46]} 19. Nxc4 {[%clk 0:00:55]}  Rxa2 {[%clk 0:00:44]} 20. Qf3 {[%clk 0:00:46]}  exd5 {[%clk 0:00:38]} 21. Bxd5 {[%clk 0:00:44]}  Bf6 {[%clk 0:00:38]} 22. Nxd6 {[%clk 0:00:39]}  Ra3 {[%clk 0:00:31]} 23. Rxc5 {[%clk 0:00:35]} 1-0


[Site "https://www.chess.com"]

[Event "Titled Tuesday Blitz May 18 2021"]
[White "Visakh N R"]
[Black "Andreikin, Dmitry"]
[WhiteFideId "25012223"]
[BlackFideId "4158814"]
[WhiteElo "2428"]
[BlackElo "2782"]
[Result "1-0"]
[Round "10"]
[TimeControl "180+1"]
[Date "2021.05.18"]
[WhiteClock "0:00:39"]
[BlackClock "0:00:01"]

1. e4 {[%clk 0:03:00]}  c5 {[%clk 0:02:57]} 2. Nf3 {[%clk 0:03:00]}  e6 {[%clk 0:02:56]} 3. d4 {[%clk 0:02:58]}  cxd4 {[%clk 0:02:57]} 4. Nxd4 {[%clk 0:02:59]}  Nc6 {[%clk 0:02:57]} 5. Nxc6 {[%clk 0:02:57]}  bxc6 {[%clk 0:02:56]} 6. Bd3 {[%clk 0:02:58]}  Nf6 {[%clk 0:02:53]} 7. O-O {[%clk 0:02:58]}  d5 {[%clk 0:02:53]} 8. Nd2 {[%clk 0:02:53]}  Bd6 {[%clk 0:02:44]} 9. Qe2 {[%clk 0:02:53]}  Qc7 {[%clk 0:02:43]} 10. Nf3 {[%clk 0:02:52]}  dxe4 {[%clk 0:02:38]} 11. Bxe4 {[%clk 0:02:52]}  O-O {[%clk 0:02:30]} 12. Bd3 {[%clk 0:02:49]}  c5 {[%clk 0:02:29]} 13. Bg5 {[%clk 0:02:48]}  Nd5 {[%clk 0:02:07]} 14. c4 {[%clk 0:02:46]}  Nb6 {[%clk 0:01:50]} 15. Rad1 {[%clk 0:02:44]}  Bb7 {[%clk 0:01:46]} 16. Be4 {[%clk 0:02:42]}  Be7 {[%clk 0:01:41]} 17. Bxe7 {[%clk 0:02:11]}  Qxe7 {[%clk 0:01:40]} 18. Ne5 {[%clk 0:02:11]}  Rad8 {[%clk 0:01:23]} 19. b3 {[%clk 0:02:04]}  f6 {[%clk 0:01:09]} 20. Bxb7 {[%clk 0:01:42]}  Qxb7 {[%clk 0:01:07]} 21. Nd3 {[%clk 0:01:41]}  Qc6 {[%clk 0:01:03]} 22. Qe3 {[%clk 0:01:41]}  Nd7 {[%clk 0:00:49]} 23. Rd2 {[%clk 0:01:41]}  e5 {[%clk 0:00:35]} 24. Rfd1 {[%clk 0:01:40]}  Qc7 {[%clk 0:00:29]} 25. h4 {[%clk 0:01:34]}  Rc8 {[%clk 0:00:22]} 26. Nf4 {[%clk 0:01:09]}  Rf7 {[%clk 0:00:22]} 27. Ne6 {[%clk 0:01:06]}  Qb7 {[%clk 0:00:17]} 28. Rd6 {[%clk 0:01:04]}  h6 {[%clk 0:00:11]} 29. Qd2 {[%clk 0:01:04]}  Nf8 {[%clk 0:00:09]} 30. Nd8 {[%clk 0:01:03]}  Rxd8 {[%clk 0:00:09]} 31. Rxd8 {[%clk 0:01:04]}  Qe4 {[%clk 0:00:07]} 32. Qd5 {[%clk 0:01:04]}  Qxd5 {[%clk 0:00:04]} 33. R1xd5 {[%clk 0:01:03]}  Kh7 {[%clk 0:00:05]} 34. R8d6 {[%clk 0:00:58]}  Ng6 {[%clk 0:00:04]} 35. g3 {[%clk 0:00:58]}  e4 {[%clk 0:00:04]} 36. Rxc5 {[%clk 0:00:57]}  Ne5 {[%clk 0:00:04]} 37. Re6 {[%clk 0:00:47]}  Nf3+ {[%clk 0:00:03]} 38. Kg2 {[%clk 0:00:46]}  f5 {[%clk 0:00:03]} 39. h5 {[%clk 0:00:44]}  Nd4 {[%clk 0:00:02]} 40. Ree5 {[%clk 0:00:42]}  Nc2 {[%clk 0:00:01]} 41. Rxf5 {[%clk 0:00:41]}  Rd7 {[%clk 0:00:02]} 42. Rcd5 {[%clk 0:00:41]}  Rc7 {[%clk 0:00:01]} 43. Rf4 {[%clk 0:00:39]} 1-0


[Site "https://www.chess.com"]

[Event "Titled Tuesday Blitz May 18 2021"]
[White "Vujnovic, Patricija"]
[Black "ViditYT"]
[WhiteFideId "14502313"]
[WhiteElo "2107"]
[BlackElo "2927"]
[Result "0-1"]
[Round "10"]
[TimeControl "180+1"]
[Date "2021.05.18"]
[WhiteClock "0:00:04"]
[BlackClock "0:00:51"]

1. d4 {[%clk 0:03:00]}  d6 {[%clk 0:02:57]} 2. e4 {[%clk 0:02:59]}  Nf6 {[%clk 0:02:54]} 3. Nc3 {[%clk 0:02:59]}  e5 {[%clk 0:02:54]} 4. Nf3 {[%clk 0:02:58]}  Nbd7 {[%clk 0:02:53]} 5. Bc4 {[%clk 0:02:58]}  Be7 {[%clk 0:02:50]} 6. a4 {[%clk 0:02:58]}  O-O {[%clk 0:02:49]} 7. O-O {[%clk 0:02:58]}  h6 {[%clk 0:02:41]} 8. h3 {[%clk 0:02:58]}  Re8 {[%clk 0:02:39]} 9. Re1 {[%clk 0:02:57]}  Bf8 {[%clk 0:02:39]} 10. Be3 {[%clk 0:02:40]}  a5 {[%clk 0:02:39]} 11. Ba2 {[%clk 0:02:37]}  b6 {[%clk 0:02:38]} 12. dxe5 {[%clk 0:02:14]}  dxe5 {[%clk 0:02:37]} 13. Nd5 {[%clk 0:02:14]}  Bb7 {[%clk 0:02:33]} 14. Qd3 {[%clk 0:01:53]}  Nc5 {[%clk 0:02:27]} 15. Bxc5 {[%clk 0:01:52]}  Bxc5 {[%clk 0:02:28]} 16. Rad1 {[%clk 0:01:51]}  c6 {[%clk 0:02:25]} 17. Nxf6+ {[%clk 0:01:31]}  Qxf6 {[%clk 0:02:26]} 18. Bc4 {[%clk 0:01:31]}  Rad8 {[%clk 0:02:23]} 19. Qb3 {[%clk 0:01:30]}  Kf8 {[%clk 0:02:19]} 20. c3 {[%clk 0:01:27]}  Bc8 {[%clk 0:02:15]} 21. Rxd8 {[%clk 0:01:25]}  Rxd8 {[%clk 0:02:15]} 22. Rd1 {[%clk 0:01:25]}  Re8 {[%clk 0:02:10]} 23. Rd3 {[%clk 0:01:14]}  g5 {[%clk 0:02:07]} 24. Qc2 {[%clk 0:01:01]}  h5 {[%clk 0:02:06]} 25. Qd2 {[%clk 0:00:54]}  g4 {[%clk 0:01:55]} 26. hxg4 {[%clk 0:00:55]}  hxg4 {[%clk 0:01:55]} 27. Ng5 {[%clk 0:00:55]}  Kg7 {[%clk 0:01:30]} 28. Bxf7 {[%clk 0:00:50]}  Rf8 {[%clk 0:01:24]} 29. b4 {[%clk 0:00:34]}  axb4 {[%clk 0:01:21]} 30. cxb4 {[%clk 0:00:34]}  Bxf2+ {[%clk 0:01:09]} 31. Qxf2 {[%clk 0:00:32]}  Qxg5 {[%clk 0:01:09]} 32. Qxb6 {[%clk 0:00:07]}  Rxf7 {[%clk 0:01:03]} 33. Qxc6 {[%clk 0:00:08]}  Bb7 {[%clk 0:01:04]} 34. Qc3 {[%clk 0:00:05]}  Qf4 {[%clk 0:00:56]} 35. Rg3 {[%clk 0:00:04]}  Kg6 {[%clk 0:00:51]} 0-1


[Site "https://www.chess.com"]